Cogmind - Beta 13 *** ADVENTURER MODE // 2024.05.27 @ 23:04:05 Player: Pyr0 Result: Destroyed by Y-45 Defender with Heavy Assault Rifle Performance ------------- Evolutions (2) 1000 Regions Visited (5) 1000 Robots Destroyed (84) 420 Value Destroyed (1974) 1974 Prototype IDs (3) 60 Alien Tech Used (0) 0 Bonus (0) 0 TOTAL SCORE: 4454 Bonus ------- None Cogmind --------- Core Integrity 0/550 Matter 481/500 Energy 410/410 System Corruption 3% Temperature Cool (54) Movement Walking (330) Ox3 Location -8/Storage Parts ------- > --- POWER (1) -------- Light Nuclear Core > --- PROPULSION (3) --- Aluminum Leg > --- UTILITY (5) ------ Large Storage Unit High-capacity Battery High-capacity Matter Pod Signal Interpreter > --- WEAPON (2) ------- Improved Medium Laser Heavy Assault Rifle > --- INVENTORY (15) --- Light Ion Engine Cooled Ion Engine Light Nuclear Core Light Nuclear Core Light Nuclear Core EM Shotgun Mini Grenade Launcher Mini Grenade Launcher Mini Grenade Launcher Peak State ------------ > --- POWER ------------ Light Deuterium Engine > --- PROPULSION ------- Light Treads Light Treads Light Treads > --- UTILITY ---------- Large Storage Unit Improved Sensor Array Signal Interpreter Seismic Detector ECM Suite > --- WEAPON ----------- Medium Laser Light Assault Rifle > --- INVENTORY -------- Light Ion Engine Improved Ion Engine Light Nuclear Core High-capacity Battery High-capacity Matter Pod Signal Interpreter EM Shotgun Heavy Assault Rifle Grenade Launcher Mini Grenade Launcher Mini Grenade Launcher Mini Grenade Launcher [Rating: 17] Favorites ----------- Power Ion Engine Engine Ion Engine Power Core Light Nuclear Core Propulsion Light Treads Treads Light Treads Leg Aluminum Leg Utility Large Storage Unit Device ECM Suite Storage Large Storage Unit Processor Signal Interpreter Weapon Light Assault Rifle Energy Gun Medium Laser Ballistic Gun Light Assault Rifle Launcher Mini Grenade Launcher Special Weapon Mining Laser Build | -11 -10 -9 -9 -8 -8 ------- Run | Yrd Mat Mat Min Mat Sto Slots Evolved 4 | . . 2 . 2 . Power . | . . . . . . Propulsion 1 | . . . . 1 . Utility 3 | . . 2 . 1 . Weapon . | . . . . . . Parts Attached 62 | 6 9 22 . 8 17 Power 8 | 1 1 3 . . 3 Engine 7 | 1 1 3 . . 2 Core 1 | . . . . . 1 Reactor . | . . . . . . Propulsion 18 | 2 3 6 . 4 3 Treads 15 | 2 3 6 . 4 . Leg 3 | . . . . . 3 Wheel . | . . . . . . Hover . | . . . . . . Flight . | . . . . . . Utility 14 | 1 4 4 . 1 4 Device 7 | . 1 4 . 1 1 Storage 5 | 1 2 . . . 2 Processor 2 | . 1 . . . 1 Hackware . | . . . . . . Protection . | . . . . . . Artifact . | . . . . . . Weapon 22 | 2 1 9 . 3 7 Energy Gun 4 | 1 . . . 1 2 Energy Cannon . | . . . . . . Ballistic Gun 10 | 1 1 5 . 1 2 Ballistic Cannon . | . . . . . . Launcher 7 | . . 3 . 1 3 Special Weapon 1 | . . 1 . . . Impact Weapon . | . . . . . . Slashing Weapon . | . . . . . . Piercing Weapon . | . . . . . . Special Melee Weapon . | . . . . . . Unidentified Prototypes . | . . . . . . Parts Lost 29 | . . 11 1 3 14 Power 5 | . . 2 . . 3 Propulsion 8 | . . 2 . 2 4 Utility 7 | . . 2 1 . 4 Weapon 9 | . . 5 . 1 3 Highest Loss Streak 12 | . . 8 1 2 12 To Critical Strikes . | . . . . . . Average Slot Usage (%) 91 | . 97 93 98 87 83 Engine 9 | . 14 10 11 9 4 Treads 21 | . 26 20 22 25 13 Leg 1 | . . . . . 6 Device 14 | . 9 19 20 17 12 Storage 12 | . 14 11 11 9 16 Processor 8 | . 4 11 11 9 8 Energy Gun 6 | . 14 1 . 1 8 Ballistic Gun 12 | . 14 15 22 15 5 Launcher 1 | . . 2 . . 3 Naked Turns . | . . . . . . Heaviest Build 39 | 14 30 34 34 35 39 Greatest Support 66 | 40 40 46 46 66 60 Greatest Overweight (x) 12 | . 9 10 . . 12 Average Overweight (x) . | . . . . . . Largest Inventory Capacity 15 | 8 15 15 15 15 15 Average Capacity 14 | 7 13 15 15 15 15 Most Carried 15 | 8 11 15 13 15 14 Average Carried 10 | 3 8 11 13 13 10 Final Capacity 15 | 8 15 15 15 15 15 Final Carried 13 | 4 11 13 13 12 9 Class Distribution -------------------- 50% | Mutant 49% | Scavenger-Mutant Dominant Class ---------------- Mutant | -10/Materials Mutant | -9/Materials Scavenger-Mutant | -9/Mines Scavenger-Mutant | -8/Materials Scavenger-Mutant | -8/Storage Resources | -11 -10 -9 -9 -8 -8 ----------- Run | Yrd Mat Mat Min Mat Sto Matter Collected 1817 | 122 403 620 . 222 450 Remotely 62 | . . 62 . . . Salvage Created 2739 | . 470 1001 . 313 955 Parts 163 | . 33 69 . 18 43 Haulers Intercepted 4 | . 1 . . 1 2 Recyclers Shooed 3 | . 1 1 . . 1 Parts Field Recycled . | . . . . . . Retrieved Matter . | . . . . . . Parts Self-Destructed . | . . . . . . Prevented . | . . . . . . Kills | -11 -10 -9 -9 -8 -8 ------- Run | Yrd Mat Mat Min Mat Sto Combat Hostiles Destroyed 61 | . 13 24 . 9 15 Guns 46 | . 13 18 . 6 9 AOE 15 | . . 6 . 3 6 Classes Destroyed 11 | . 5 2 . 2 2 Worker 6 | . 1 . . 1 4 Builder 1 | . . . . . 1 Hauler 4 | . 1 . . 1 2 Recycler 8 | . . 4 . . 4 Watcher 4 | . 2 1 . . 1 Swarmer 24 | . 6 12 . 4 2 Grunt 24 | . 7 7 . 2 8 Brawler 1 | . . . . . 1 Duelist 1 | . . . . 1 . Sentry 10 | . . 5 . 1 4 Hunter 1 | . . . . 1 . Best Kill Streak 9 | . 7 9 . 6 8 Combat Bots Only 8 | . 7 8 . 5 4 Max Kills in Single Turn 5 | . 2 2 . 3 5 Gunslinging . | . . . . . . Exploded 3 | . . 2 . 3 3 Melee . | . . . . . . Uniques/NPCs Destroyed . | . . . . . . Combat | -11 -10 -9 -9 -8 -8 -------- Run | Yrd Mat Mat Min Mat Sto Hostile Shots Fired 398 | . 54 157 18 41 128 Missed 91 | . 6 38 7 10 30 Damage Taken 3471 | . 387 1125 107 481 1371 Core 921 | . 83 258 21 127 432 Absorbed by Shields . | . . . . . . Ignored by Resistances 1032 | . 125 339 33 139 396 Regen/Repaired (Parts) 70 | . 70 . . . . Core Remaining (%) 65 | 100 66 . 30 . . Volleys Fired 254 | 1 52 89 3 31 78 Largest 2 | 2 2 2 2 2 2 Hottest 100 | 70 70 100 43 80 80 Shots Fired 445 | 2 99 148 6 59 131 Gun 406 | 2 99 137 6 55 107 Cannon . | . . . . . . Launcher 38 | . . 10 . 4 24 Special 1 | . . 1 . . . Kinetic 282 | 1 52 131 6 47 45 Thermal 122 | 1 47 7 . 8 59 Explosive 38 | . . 10 . 4 24 Electromagnetic 3 | . . . . . 3 Robot Hit Streak 23 | . 13 13 8 22 23 Robot Miss Streak 3 | . 3 3 1 3 2 Penetration Max . | . . . . . . Secondary Targets 5 | . 2 1 . . 2 Max Gunslinging Chain 1 | . 1 1 . . 1 Shots Hit Robots 338 | . 71 109 5 49 104 Core Hits 166 | . 31 51 2 22 60 Critical Kills 1 | . . 1 . . . Critical Parts Destroyed 1 | . 1 . . . . Critical Strikes 10 | . 4 1 . 1 4 Burn 8 | . 3 . . 1 4 Destroy 2 | . 1 1 . . . Melee Attacks . | . . . . . . Impact . | . . . . . . Slashing . | . . . . . . Piercing . | . . . . . . Sneak Attacks . | . . . . . . Combat Hostiles . | . . . . . . Follow-up Attacks . | . . . . . . Damage Inflicted 5372 | . 771 1637 67 777 2120 Guns 3590 | . 771 1197 67 563 992 Cannons . | . . . . . . Explosions 1778 | . . 440 . 211 1127 Melee . | . . . . . . Ramming 4 | . . . . 3 1 Kinetic 2362 | . 308 1159 67 475 353 Thermal 1208 | . 463 38 . 88 619 Explosive 1778 | . . 440 . 211 1127 Electromagnetic 20 | . . . . . 20 Impact . | . . . . . . Slashing . | . . . . . . Piercing . | . . . . . . Highest Corruption 3 | . . . . . 3 Average Corruption 3 | . . . . . 3 Corruption Purged . | . . . . . . Corruption Blocked . | . . . . . . Effects 9 | . . . . . 9 Message Errors 3 | . . . . . 3 Matter Fused 3 | . . . . . 3 Energy Discharges 1 | . . . . . 1 Parts Rejected 1 | . . . . . 1 Data Loss (minor) 1 | . . . . . 1 Overload Shots . | . . . . . . Overflow Damage 38 | . . 30 . 8 . Projectiles . | . . . . . . Explosions 38 | . . 30 . 8 . Melee . | . . . . . . Knockbacks . | . . . . . . Impact . | . . . . . . Kinetic . | . . . . . . Secondary . | . . . . . . Self-Inflicted Damage 274 | . . 45 . 44 185 Shots 14 | . . 2 . 3 9 Rammed 2 | . . . . 1 1 Targets Rammed 2 | . . . . 1 1 Kicked . | . . . . . . Crushed . | . . . . . . Highest Temperature 222 | 9 222 74 14 22 96 Average Temperature 46 | 6 75 21 11 7 29 Received Heat Transfer 1566 | . 228 396 78 171 693 Effects 3 | . 3 . . . . Interference 3 | . 3 . . . . Siege Activations . | . . . . . . Robots Corrupted . | . . . . . . Combat Hostiles . | . . . . . . Parts Fried . | . . . . . . Impact Corruptions . | . . . . . . Robots Melted . | . . . . . . Combat Hostiles . | . . . . . . Parts Melted 6 | . 3 . . . 3 Heat Transferred 4107 | . 1591 111 . 333 2072 Parts Sabotaged . | . . . . . . Parts Stolen . | . . . . . . Parts Stripped . | . . . . . . Power Chain Reactions . | . . . . . . Alert | -11 -10 -9 -9 -8 -8 ------- Run | Yrd Mat Mat Min Mat Sto Peak Influence 341 | . 283 306 100 169 341 Initial 100 | . . 40 100 29 60 Average 153 | . 148 175 99 61 208 Maximum Alert Level 1 | . 1 1 . . 1 Low Security (%) 66 | 100 68 61 100 100 43 Level 1 33 | . 31 38 . . 56 Level 2 . | . . . . . . Level 3 . | . . . . . . Level 4 . | . . . . . . Level 5 . | . . . . . . High Security . | . . . . . . Max Security . | . . . . . . Squads Dispatched 11 | . 2 5 . 1 3 Investigation 5 | . 2 3 . . . Extermination . | . . . . . . Reinforcement 6 | . . 2 . 1 3 Assault . | . . . . . . Garrison . | . . . . . . Intercept . | . . . . . . Searches Triggered . | . . . . . . Construction Impeded 1 | . . . . . 1 Haulers Reinforced . | . . . . . . Active Scanning Responses . | . . . . . . Cargo Convoy Interrupts . | . . . . . . Stealth | -11 -10 -9 -9 -8 -8 --------- Run | Yrd Mat Mat Min Mat Sto Distress Signals 8 | . 2 2 . 1 3 Communications Jammed . | . . . . . . Distress Signals . | . . . . . . Times Spotted 118 | . 29 39 3 17 30 Peak Tracking Total 8 | . 5 5 3 8 5 Tactical Retreats 17 | . 2 9 . 4 2 Traps | -11 -10 -9 -9 -8 -8 ------- Run | Yrd Mat Mat Min Mat Sto Traps Triggered 4 | . 1 3 . . . Indirectly . | . . . . . . Trap Hack Attempts . | . . . . . . Triggered . | . . . . . . Disarmed . | . . . . . . Reprogrammed . | . . . . . . Reused . | . . . . . . Traps Extracted . | . . . . . . Installed . | . . . . . . Triggered . | . . . . . . Machines | -11 -10 -9 -9 -8 -8 ---------- Run | Yrd Mat Mat Min Mat Sto Machines Disabled 6 | . . 1 . . 5 Max in Single Turn 2 | . . 1 . . 2 Machines Repaired . | . . . . . . Machines Dismantled . | . . . . . . Machines Sabotaged . | . . . . . . Overloaded Fab Kills . | . . . . . . Hacking | -11 -10 -9 -9 -8 -8 --------- Run | Yrd Mat Mat Min Mat Sto Machines Accessed 12 | . 8 2 . . 2 Terminals 10 | . 6 2 . . 2 Fabricators . | . . . . . . Repair Stations 1 | . 1 . . . . Recycling Units 1 | . 1 . . . . Scanalyzers . | . . . . . . Garrison Access . | . . . . . . Total Hacks 33 | . 23 6 . . 4 Successful 21 | . 14 5 . . 2 Failed 12 | . 9 1 . . 2 Catastrophic 2 | . 1 1 . . . Database Lockouts . | . . . . . . Manual 10 | . 9 . . 1 . Terminals 28 | . 18 6 . . 4 Fabricators . | . . . . . . Repair Stations 2 | . 2 . . . . Recycling Units 3 | . 3 . . . . Scanalyzers . | . . . . . . Garrison Access . | . . . . . . Terminal Hacks 15 | . 8 5 . . 2 Record 3 | . 1 2 . . . Robot Analysis 1 | . 1 . . . . Prototype ID Bank 2 | . 2 . . . . Open Door 1 | . . . . . 1 Emergency Access Points 1 | . 1 . . . . Unreport Threat 1 | . . . . . 1 Transport Status 1 | . 1 . . . . Hauler Manifests 2 | . 1 1 . . . Zone Layout 3 | . 1 2 . . . Fabricator Hacks . | . . . . . . Repair Station Hacks 2 | . 2 . . . . Scan Component 1 | . 1 . . . . Repair 1 | . 1 . . . . Recycling Unit Hacks 2 | . 2 . . . . Report Inventory 1 | . 1 . . . . Retrieve Components 1 | . 1 . . . . Scanalyzer . | . . . . . . Garrison Access Hacks . | . . . . . . Unauthorized Hacks 2 | . 2 . . . . Terminals 1 | . 1 . . . . Track 1 | . 1 . . . . Fabricators . | . . . . . . Repair Stations . | . . . . . . Recycling Units 1 | . 1 . . . . Tunnel 1 | . 1 . . . . Scanalyzers . | . . . . . . Garrison Access . | . . . . . . Data Cores Recovered . | . . . . . . Used . | . . . . . . Hacking Detections 11 | . 6 2 . 1 2 Full Trace Events 5 | . 3 2 . . . Feedback Events . | . . . . . . Feedback Blocked . | . . . . . . Robot Schematics Acquired . | . . . . . . Robots Built . | . . . . . . Authchips . | . . . . . . Time . | . . . . . . Total Robot Build Rating . | . . . . . . Part Schematics Acquired . | . . . . . . Parts Built . | . . . . . . Authchips . | . . . . . . Time . | . . . . . . Total Part Build Rating . | . . . . . . Parts Repaired 1 | . 1 . . . . Time 26 | . 26 . . . . Parts Recycled . | . . . . . . Recycled Matter . | . . . . . . Retrieved Matter . | . . . . . . Retrieved Components 3 | . 3 . . . . Parts Scanalyzed . | . . . . . . Part Schematics Acquired . | . . . . . . Parts Damaged . | . . . . . . Bothacking | -11 -10 -9 -9 -8 -8 ------------ Run | Yrd Mat Mat Min Mat Sto Used RIF Installer . | . . . . . . Robots Hacked . | . . . . . . Non-combat . | . . . . . . Combat . | . . . . . . Robot Hacks Applied . | . . . . . . Relay Couplers Released . | . . . . . . Fabnet Peak Effective % . | . . . . . . Robots Rewired . | . . . . . . Allies Hacked . | . . . . . . Hacks Repelled . | . . . . . . Allies | -11 -10 -9 -9 -8 -8 -------- Run | Yrd Mat Mat Min Mat Sto Total Allies . | . . . . . . Largest Group . | . . . . . . Highest-Rated Group . | . . . . . . Highest-Rated Ally . | . . . . . . Total Orders . | . . . . . . Ally Attacks . | . . . . . . Total Damage . | . . . . . . Kills . | . . . . . . Allies Corrupted . | . . . . . . Allies Melted . | . . . . . . Intel | -11 -10 -9 -9 -8 -8 ------- Run | Yrd Mat Mat Min Mat Sto Robot Analysis Total 1 | . 1 . . . . Derelict Logs Recovered . | . . . . . . Drone Launches . | . . . . . . Drone Recoveries . | . . . . . . Exploration | -11 -10 -9 -9 -8 -8 ------------- Run | Yrd Mat Mat Min Mat Sto Turns Passed 3830 | 75 1013 1186 66 593 897 Spaces Moved 1703 | 35 492 518 37 296 325 Core 28 | 9 7 5 . . 7 Treads 1540 | 26 485 513 37 296 183 Legs 135 | . . . . . 135 Wheels . | . . . . . . Hover . | . . . . . . Flight . | . . . . . . Fastest Speed 50 | 50 160 160 160 160 160 Average Speed 167 | 131 164 163 160 160 190 Slowest Speed 650 | 160 500 550 160 160 650 Overloaded Moves . | . . . . . . Propulsion Burnouts . | . . . . . . Robots Hopped . | . . . . . . Cave-ins Triggered . | . . . . . . Exploration Rate (%) 28 | 3 62 37 9 17 45 Regions Visited 5 Branch Regions 2 Pre-discovered Areas 1 | . 1 . . . . Known Exits Taken 4 | . 1 1 1 1 . Unknown Exits Taken 1 | 1 . . . . . Scrap Searched . | . . . . . . Spaces Dug 13 | . . 13 . . . Terrain Destroyed 221 | . . 56 . 45 120 Melee . | . . . . . . Projectile . | . . . . . . AOE 221 | . . 56 . 45 120 Terrain Rammed . | . . . . . . Walls Destroyed . | . . . . . . Machines Disabled . | . . . . . . Actions | -11 -10 -9 -9 -8 -8 --------- Run | Yrd Mat Mat Min Mat Sto Total 2262 | 62 603 720 39 361 477 Wait 168 | 11 31 67 . 17 42 Move 1698 | 34 491 517 36 295 325 Hop . | . . . . . . Pick Up 66 | 10 16 22 . 7 11 Fast Attach . | . . . . . . Attach 52 | 6 5 19 . 7 15 Detach 2 | . . . . . 2 Swap 10 | . 4 3 . 1 2 Drop 10 | . 4 3 . 2 1 Fire 254 | 1 52 89 3 31 78 Melee . | . . . . . . Ram 1 | . . . . . 1 Kick . | . . . . . . Crush 1 | . . . . 1 . Escape Stasis . | . . . . . . Rewire . | . . . . . . Trap . | . . . . . . Miscellaneous . | . . . . . . Route ------- -11/Scrapyard -10/Materials (discovered 2 exits: *Mat / *Min) -9/Materials -9/Mines -8/Materials -8/Storage History --------- Turn | Location | Event 4 | -11/Scrapyard | Discovered new exit (range 15) 76 | -11/Scrapyard | Entered Materials 248 | -10/Materials | Destroyed 7 combat bots 300 | -10/Materials | Build established: Mutant 500 | -10/Materials | Discovered new exit (range 13) 786 | -10/Materials | Identified exit to Mines 927 | -10/Materials | Discovered new exit (range 16) 949 | -10/Materials | Identified exit to Materials 1035 | -10/Materials | Repaired Lgt. Treads 1089 | -10/Materials | Entered another Materials area 1089 | -9/Materials | Evolved 2 slots: Utility x2 1288 | -9/Materials | Destroyed 8 combat bots 1312 | -9/Materials | Lost 8 parts (1p2n1u4w) 1718 | -9/Materials | Core integrity fell below 50% 2032 | -9/Materials | Build established: Scavenger-Mutant 2082 | -9/Materials | Discovered new exit (range 13) 2249 | -9/Materials | Identified exit to Mines 2275 | -9/Materials | Entered Mines 2312 | -9/Mines | Discovered new exit (range 13) 2340 | -9/Mines | Identified exit to Materials 2341 | -9/Mines | Entered Materials 2341 | -8/Materials | Evolved 2 slots: Propulsion x1, Utility x1 2908 | -8/Materials | Discovered new exit (range 15) 2933 | -8/Materials | Identified exit to Storage 2934 | -8/Materials | Entered Storage 3418 | -8/Storage | Core integrity fell below 50% 3438 | -8/Storage | Core integrity fell below 20% 3465 | -8/Storage | Lost 12 parts (2p3n4u3w) 3831 | -8/Storage | Destroyed by Y-45 Defender with Heavy Assault Rifle Last Messages --------------- U-05 Engineer lays Concrete. U-05 Engineer builds a Wall. U-05 Engineer builds a Door. U-05 Engineer lays Concrete. Acquired 52 matter. U-05 Engineer builds a Wall. Storage Shell breached. Acquired Imp. Medium Laser. Acquired Prototype Engine. System corrupted: Aluminum Leg rejected. System corrupted: Energy discharge (-147). Acquired 37 matter. R-06 Scavenger destroyed. Acquired Aluminum Leg. Acquired 73 matter. System corrupted: Matter fused (-10). Acquired 17 matter. &XSJ24W=NKEZQ &L WP0/K# Y-45 Defender destroyed. Aluminum Leg destroyed. Map ----- +----------------------------------------------------+ | | | | | | | ???????????????????????????????????????? | | ???????????????????????????????????????? | | ???????????????????????????????????????? | | ???????????????????????????????????????? | | ???????????????????????????????????????? | | ???????????????????????????????????????? | | ?????################+####?????????????? | | ?????# ????????????? | | ?????# ????????????? | | ?????# ????????????? | | ?????######+#########??????????????????? | | ??????# / #??????????????????????? | | ??????# | ] #??????????????????????? | | ??????# = #??????????????????????? | | ??????# #??????????????????????? | | ??????# ! #??????????????????????? | | ??????# #??????????????????????? | | ??????# #??????????????????????? | | ??????# [#??????????????????????? | | ??########+######??????????????????????? | | ??# # #???????????????????????????? | | ??# # #############???????????????? | | ??# + o @ [ ????????? | | ??# # #####Y =%! ????????? | | ??# # #???? [ ????????? | | ??# # #?????+######## ?????????? | | ??##+##### #????? ????????????????????? | | ???# #####+#?????? "???????????????????? | | ?### ## #?????? ""??????????????????? | | ## # ## #???????"""?????????????????? | | # ## ## #??????? ?????????????????? | | # # #[ #???????? ??????????????????? | | # # +[ #????????##?????????????????? | | # # [%#[ #???????????????????????????? | | ####[## #?########??????????????????? | | # ##%## #?#!! !!!#??????????????????? | | # #[## #?#!! !!!#??????????????????? | | # #[#######?#!! #??????????#####???? | | # ##=# #????# #??????????# ##### | | ## #%#!##????### ##??????????# # | | ## #%## #?????#T #??????????# # ! | | # #%#* #?????## #??????????# # ! | | # #%############+###?########## # | | #### #= + #??## # + """ | | ???# # """"" # #??# # # """ | | ???# # %""""" + #??# # # """ | | ???# + """" # #??## # # | +----------------------------------------------------+ Best States ------------- Heat Dissipation 31 Energy Generation 14 Energy Capacity 410 Matter Stores 500 Matter Capacity 500 Sight Range 16 Robot Scan Range 15 Terrain Scan Density 10 ECM Strength 1 Resistance: KI 20 Resistance: TH 20 Resistance: EX 20 Resistance: EM 20 Resistance: I 20 Resistance: S 20 Resistance: P 20 Evasion (%) 40 Recoil Reduction 3 Offensive Hacking 10 Item Schematics ----------------- None Robot Schematics ------------------ None Fabricated ------------ Nothing Alien Tech Used ----------------- None Achievements -------------- Brute Force Everything Is Under Control Challenges ------------ None Game ------ Seed HeatDisruptorFirepult Manual? 0 Play Time 01:08:51 Cumulative 9.9 hours Start 2024.05.27 @ 21:53:17 End 2024.05.27 @ 23:04:05 Sessions 1 Manual Loads 0 Difficulty Adventurer Special Mode None Game No. 6 Rogue 0 Adventurer 6 Explorer 0 Win Type - Total 0 Types 0/0/0/0/0/0/0/0/0 Lore% 9 Gallery% 11 Achievement% 14 Wizard Run 0 Options --------- Layout 0 ASCII 0 Keyboard 0 Movement Mouse Keybinds 0 Fullscreen 0 Font 24/Smallcaps Map View 128x54 Zoom Use 0% Tactical HUD 0 Map Filters NONE Filters NONE Steam 1 RUN: 769b29d6-bc02-4b5f-9634-4a024d1e1b93